fUST/lending_fUST_20250610
["ID","MTS","AMOUNT","RATE_DAILY","PERIOD"]
[365264858,1749569454183,-460.0,0.00022191,4]
[365264859,1749569454192,-460.0,0.00022191,4]
[365264860,1749569454202,-460.0,0.00022191,4]
[365264861,1749569454211,-460.0,0.00022191,4]
[365264862,1749569454221,-460.0,0.00022191,4]
[365264863,1749569454230,-240.0,0.00022191,4]
[365264864,1749569454241,-460.0,0.00022191,4]
[365264865,1749569454251,-460.0,0.00022191,4]
[365264866,1749569454260,-460.0,0.00022191,4]
[365264867,1749569454269,-471.95,0.00022191,4]
[365264868,1749569454279,-460.0,0.00022191,4]
[365264869,1749569454288,-1030.35,0.00022191,4]
[365264870,1749569454298,-460.0,0.00022191,4]
[365264871,1749569454308,-460.0,0.00022191,4]
[365264872,1749569454317,-460.0,0.00022191,4]
[365264873,1749569454326,-460.0,0.00022191,4]
[365264874,1749569454337,-460.0,0.00022191,4]
[365264875,1749569454346,-460.0,0.00022191,4]
[365264876,1749569454356,-400.0,0.00022191,4]
[365264877,1749569454365,-151.56858156,0.00022191,4]
[365264878,1749569454375,-460.0,0.00022191,4]
[365264879,1749569454385,-460.0,0.00022191,4]
[365264880,1749569454394,-527.16,0.00022191,4]
[365264881,1749569454404,-460.0,0.00022191,4]
[365264882,1749569454414,-460.0,0.00022191,4]
[365264883,1749569454423,-420.0,0.00022191,4]
[365264884,1749569454432,-773.12,0.00022191,4]
[365264885,1749569454442,-460.0,0.00022191,4]
[365264886,1749569454451,-420.0,0.00022191,4]
[365264887,1749569454461,-460.0,0.00022191,4]
[365264888,1749569454471,-480.41196301,0.00022191,2]
[365264889,1749569454480,-460.0,0.00022191,4]
[365264890,1749569454493,-460.0,0.00022191,4]
[365264891,1749569454503,-460.0,0.00022191,4]
[365264892,1749569454512,-460.0,0.00022191,4]
[365264893,1749569454522,-714.45,0.00022191,4]
[365264894,1749569454532,-1226.03,0.00022191,4]
[365264895,1749569454541,-460.0,0.00022191,4]
[365264896,1749569454554,-1855.94,0.00022191,4]
[365264897,1749569454563,-1160.6,0.00022191,4]
[365264898,1749569454573,-460.0,0.00022191,4]
[365264899,1749569454585,-310.0,0.00022191,4]
[365264900,1749569454595,-163.506835,0.00022191,7]
[365264901,1749569454605,-460.0,0.00022191,4]
[365264902,1749569454615,-460.0,0.00022191,4]
[365264903,1749569454624,-163.506835,0.00022191,7]
[365264904,1749569454635,-460.0,0.00022191,4]
[365264905,1749569454644,-460.0,0.00022191,4]
[365264906,1749569454653,-460.0,0.00022191,4]
[365264907,1749569454663,-460.0,0.00022191,4]
[365264908,1749569454673,-320.0,0.00022191,4]
[365264909,1749569454684,-460.0,0.00022191,4]
[365264910,1749569454694,-460.0,0.00022191,4]
[365264911,1749569454704,-460.0,0.00022191,4]
[365264912,1749569454714,-460.0,0.00022191,4]
[365264913,1749569454723,-340.0,0.00022191,4]
[365264914,1749569454733,-1843.4,0.00022191,4]
[365264915,1749569454742,-897.05,0.00022191,4]
[365264916,1749569454753,-460.0,0.00022191,4]
[365264917,1749569454763,-380.0,0.00022191,4]
[365264918,1749569454773,-324.42737698,0.00022191,4]
[365264919,1749569454783,-1780.47,0.00022191,4]
[365264920,1749569454792,-460.0,0.00022191,4]
[365264921,1749569454802,-439.30935665,0.00022191,4]
[365264922,1749569454812,-460.0,0.00022191,4]
[365264923,1749569454821,-2525.05,0.00022191,4]
[365264924,1749569454831,-460.0,0.00022191,4]
[365264925,1749569454841,-320.0,0.00022191,4]
[365264926,1749569454850,-460.0,0.00022191,4]
[365264927,1749569454945,-460.0,0.00022191,4]
[365264928,1749569454955,-460.0,0.00022191,4]
[365264929,1749569454965,-380.0,0.00022191,4]
[365264930,1749569454974,-532.84,0.00022191,2]
[365264931,1749569454984,-2218.96,0.00022191,4]
[365264932,1749569454995,-460.0,0.00022191,4]
[365264933,1749569455005,-460.0,0.00022191,4]
[365264934,1749569455015,-400.0,0.00022191,4]
[365264935,1749569455025,-460.0,0.00022191,4]
[365264936,1749569455034,-443.72833663,0.00022198,2]
[365264937,1749569455044,-1561.0,0.00022218,4]
[365264938,1749569455054,-271.97510472,0.00022218,4]
[365264939,1749569455064,-500.0,0.00022218,4]
[365264940,1749569455077,-535.065671,0.00022218,4]
[365264941,1749569455086,-500.0,0.00022218,4]
[365264942,1749569455095,-500.0,0.00022218,4]
[365264943,1749569455105,-500.0,0.00022218,4]
[365264944,1749569455115,-1138.6262128,0.00022221,2]
[365264945,1749569455125,-1003.14132388,0.00022221,2]
[365264946,1749569455135,-1000.0,0.00022221,2]
[365264947,1749569455145,-1561.0,0.00022246,4]
[365264948,1749569455156,-500.0,0.00022246,4]
[365264949,1749569455165,-500.0,0.00022246,4]
[365264950,1749569455175,-500.0,0.00022246,4]
[365264951,1749569455185,-1561.0,0.00022273,4]
[365264952,1749569455194,-500.0,0.00022273,4]
[365264953,1749569455203,-500.0,0.00022273,4]
[365264954,1749569455212,-500.0,0.00022273,4]
[365264955,1749569455222,-61983.62,0.000223,2]
[365264956,1749569455232,-151.0,0.000223,2]
[365264957,1749569455242,-1561.0,0.00022301,4]
[365264958,1749569455252,-500.0,0.00022301,4]
[365264959,1749569455262,-500.0,0.00022301,4]
[365264960,1749569455271,-500.0,0.00022301,4]
[365264961,1749569455281,-280.54087545,0.00022301,4]
[365264962,1749569455291,-621.09360266,0.00022304,2]
[365264963,1749569455300,-500.0,0.00022304,2]
[365264964,1749569455311,-500.0,0.00022304,2]
[365264965,1749569455321,-421.21542315,0.00022304,2]
[365264966,1749569455330,-500.0,0.00022304,2]
[365264967,1749569455340,-500.0,0.00022304,2]
[365264968,1749569455350,-500.0,0.00022304,2]
[365264969,1749569455359,-500.0,0.00022304,2]
[365264970,1749569455368,-500.81351494,0.00022304,2]
[365264971,1749569455378,-700.33004905,0.00022314,7]
[365264972,1749569455387,-1561.0,0.00022328,4]
[365264973,1749569455396,-500.0,0.00022328,4]
[365264974,1749569455406,-500.0,0.00022328,4]
[365264975,1749569455416,-208.0,0.00022328,4]
[365264976,1749569455426,-160.0,0.00022355,2]
[365264977,1749569455435,-1561.0,0.00022355,4]
[365264978,1749569455445,-216.58091068,0.00022355,4]
[365264979,1749569455454,-189.35013814,0.00022355,4]
[365264980,1749569455464,-213.1263252,0.00022374,2]
[365264981,1749569455474,-160.0,0.00022374,2]
[365264982,1749569455483,-424.12530924,0.00022374,2]
[365264983,1749569455494,-834.9046531,0.00022374,2]
[365264984,1749569455503,-229.6792923,0.00022374,2]
[365264985,1749569455512,-11858.11761888,0.00022376,2]
[365264986,1749569455522,-160.0,0.00022376,2]
[365264987,1749569455531,-1561.0,0.00022383,4]
[365264988,1749569455540,-1561.0,0.0002241,4]
[365264989,1749569455549,-500.0,0.00022423,2]
[365264990,1749569455559,-1561.0,0.00022438,4]
[365264991,1749569455568,-3336.62,0.00022455,3]
[365264992,1749569455577,-1668.3,0.00022455,3]
[365264993,1749569455586,-834.16,0.00022455,3]
[365264994,1749569455596,-417.08,0.00022455,3]
[365264995,1749569455605,-153.0,0.00022456,2]
[365264996,1749569455614,-153.0,0.00022456,2]
[365264997,1749569455623,-153.0,0.00022456,2]
[365264998,1749569455632,-153.0,0.00022456,2]
[365264999,1749569455642,-153.0,0.00022456,2]
[365265000,1749569455651,-153.0,0.00022456,2]
[365265001,1749569455661,-153.0,0.00022456,2]
[365265002,1749569455671,-153.0,0.00022456,2]
[365265003,1749569455681,-153.0,0.00022456,2]
[365265004,1749569455690,-153.0,0.00022456,2]
[365265005,1749569455700,-153.0,0.00022456,2]
[365265006,1749569455710,-153.0,0.00022456,2]
[365265007,1749569455719,-153.0,0.00022456,2]
[365265008,1749569455729,-153.0,0.00022456,2]
[365265009,1749569455748,-153.0,0.00022456,2]
[365265010,1749569455760,-153.0,0.00022456,2]
[365265011,1749569455771,-153.0,0.00022456,2]
[365265012,1749569455781,-153.0,0.00022456,2]
[365265013,1749569455792,-153.0,0.00022456,2]
[365265014,1749569455801,-153.0,0.00022456,2]
[365265015,1749569455812,-153.0,0.00022456,2]
[365265016,1749569455822,-153.0,0.00022456,2]
[365265017,1749569455831,-153.0,0.00022456,2]
[365265018,1749569455841,-153.0,0.00022456,2]
[365265019,1749569455851,-153.0,0.00022456,2]
[365265020,1749569455861,-153.0,0.00022456,2]
[365265021,1749569455871,-153.0,0.00022456,2]
[365265022,1749569455881,-153.0,0.00022456,2]
[365265023,1749569455890,-153.0,0.00022456,2]
[365265024,1749569455900,-153.0,0.00022456,2]
[365265025,1749569455910,-153.0,0.00022456,2]
[365265026,1749569455919,-153.0,0.00022456,2]
[365265027,1749569455929,-153.0,0.00022456,2]
[365265028,1749569455939,-153.0,0.00022456,2]
[365265029,1749569455949,-153.0,0.00022456,2]
[365265030,1749569455958,-153.0,0.00022456,2]
[365265031,1749569455968,-153.0,0.00022456,2]
[365265032,1749569455977,-153.0,0.00022456,2]
[365265033,1749569455987,-153.0,0.00022456,2]
[365265034,1749569455998,-153.0,0.00022456,2]
[365265035,1749569456008,-153.0,0.00022456,2]
[365265036,1749569456018,-153.0,0.00022456,2]
[365265037,1749569456029,-11858.11761888,0.0002246,3]
[365265038,1749569456039,-160.0,0.00022464,2]
[365265039,1749569456049,-1561.0,0.00022465,4]
[365265040,1749569456059,-460.0,0.00022465,4]
[365265041,1749569456069,-460.0,0.00022465,4]
[365265042,1749569456081,-460.0,0.00022465,4]
[365265043,1749569456091,-213.78525752,0.00022465,4]
[365265044,1749569456101,-380.56,0.00022465,4]
[365265045,1749569456111,-460.0,0.00022465,4]
[365265046,1749569456121,-300.0,0.00022465,4]
[365265047,1749569456133,-280.0,0.00022465,4]
[365265048,1749569456144,-340.0,0.00022465,4]
[365265049,1749569456155,-460.0,0.00022465,4]
[365265050,1749569456164,-564.58243388,0.00022465,4]
[365265051,1749569456174,-340.0,0.00022465,4]
[365265052,1749569456184,-340.0,0.00022465,4]
[365265053,1749569456194,-350.0,0.00022465,4]
[365265054,1749569456204,-270.0,0.00022465,4]
[365265055,1749569456214,-290.0,0.00022465,4]
[365265056,1749569456223,-460.0,0.00022465,4]
[365265057,1749569456234,-460.0,0.00022465,4]
[365265058,1749569456244,-460.0,0.00022465,4]
[365265059,1749569456253,-460.0,0.00022465,4]
[365265060,1749569456263,-370.0,0.00022465,4]
[365265061,1749569456272,-460.0,0.00022465,4]
[365265062,1749569456282,-340.0,0.00022465,4]
[365265063,1749569456291,-460.0,0.00022465,4]
[365265064,1749569456301,-581.46090903,0.00022465,4]
[365265065,1749569456310,-460.0,0.00022465,4]
[365265066,1749569456319,-460.0,0.00022465,4]
[365265067,1749569456328,-460.0,0.00022465,4]
[365265068,1749569456338,-460.0,0.00022465,4]
[365265069,1749569456347,-460.0,0.00022465,4]
[365265070,1749569456356,-339.33288312,0.00022465,4]
[365265071,1749569456367,-460.0,0.00022465,4]
[365265072,1749569456377,-460.0,0.00022465,4]
[365265073,1749569456386,-460.0,0.00022465,4]
[365265074,1749569456396,-460.0,0.00022465,4]
[365265075,1749569456406,-374.92138867,0.00022465,4]
[365265076,1749569456415,-838.13,0.00022465,4]
[365265077,1749569456425,-460.0,0.00022465,4]
[365265078,1749569456435,-460.0,0.00022465,4]
[365265079,1749569456444,-460.0,0.00022465,4]
[365265080,1749569456454,-460.0,0.00022465,4]
[365265081,1749569456463,-460.0,0.00022465,4]
[365265082,1749569456473,-815.14,0.00022465,4]
[365265083,1749569456482,-460.0,0.00022465,4]
[365265084,1749569456492,-1379.67,0.00022465,4]
[365265085,1749569456503,-460.0,0.00022465,4]
[365265086,1749569456513,-460.0,0.00022465,4]
[365265087,1749569456522,-925.84,0.00022465,4]
[365265088,1749569456532,-1831.06,0.00022465,4]
[365265089,1749569456541,-460.0,0.00022465,4]
[365265090,1749569456551,-460.0,0.00022465,4]
[365265091,1749569456561,-460.0,0.00022465,4]
[365265092,1749569456686,-878.11,0.00022465,4]
[365265093,1749569456695,-460.0,0.00022465,4]
[365265094,1749569456705,-460.0,0.00022465,4]
[365265095,1749569456715,-350.0,0.00022465,4]
[365265096,1749569456724,-460.0,0.00022465,4]
[365265097,1749569456734,-460.0,0.00022465,4]
[365265098,1749569456744,-370.0,0.00022465,4]
[365265099,1749569456754,-460.0,0.00022465,4]
[365265100,1749569456763,-631.24,0.00022465,4]
[365265101,1749569456773,-2155.69,0.00022465,4]
[365265102,1749569456782,-330.0,0.00022465,4]
[365265103,1749569456792,-370.0,0.00022465,4]
[365265104,1749569456802,-460.0,0.00022465,4]
[365265105,1749569456814,-460.0,0.00022465,4]
[365265106,1749569456824,-460.0,0.00022465,4]
[365265107,1749569456834,-460.0,0.00022465,4]
[365265108,1749569456844,-508.21,0.00022465,4]
[365265109,1749569456854,-460.0,0.00022465,4]
[365265110,1749569456864,-460.0,0.00022465,4]
[365265111,1749569456874,-460.0,0.00022465,4]
[365265112,1749569456884,-460.0,0.00022465,4]
[365265113,1749569456894,-290.0,0.00022465,4]
[365265114,1749569456904,-460.0,0.00022465,4]
[365265115,1749569456913,-460.0,0.00022465,4]
[365265116,1749569456923,-460.0,0.00022465,4]
[365265117,1749569456933,-291.1642006,0.00022465,4]
[365265118,1749569456943,-471.95,0.00022465,4]
[365265119,1749569456953,-460.0,0.00022465,4]
[365265120,1749569456963,-1030.35,0.00022465,4]
[365265121,1749569456973,-460.0,0.00022465,4]
[365265122,1749569456983,-460.0,0.00022465,4]
[365265123,1749569456992,-200.0,0.00022465,4]
[365265124,1749569457005,-460.0,0.00022465,4]
[365265125,1749569457015,-460.0,0.00022465,4]
[365265126,1749569457024,-460.0,0.00022465,4]
[365265127,1749569457033,-460.0,0.00022465,4]
[365265128,1749569457043,-460.0,0.00022465,4]
[365265129,1749569457053,-527.16,0.00022465,4]
[365265130,1749569457063,-460.0,0.00022465,4]
[365265131,1749569457076,-460.0,0.00022465,4]
[365265132,1749569457086,-773.12,0.00022465,4]
[365265133,1749569457095,-460.0,0.00022465,4]
[365265134,1749569457106,-528.30378963,0.00022465,4]
[365265135,1749569457117,-460.0,0.00022465,4]
[365265136,1749569457126,-290.0,0.00022465,4]
[365265137,1749569457136,-270.0,0.00022465,4]
[365265138,1749569457146,-460.0,0.00022465,4]
[365265139,1749569457158,-714.45,0.00022465,4]
[365265140,1749569457168,-1226.03,0.00022465,4]
[365265141,1749569457178,-290.0,0.00022465,4]
[365265142,1749569457187,-1855.94,0.00022465,4]
[365265143,1749569457198,-1160.6,0.00022465,4]
[365265144,1749569457207,-460.0,0.00022465,4]
[365265145,1749569457218,-460.0,0.00022465,4]
[365265146,1749569457227,-460.0,0.00022465,4]
[365265147,1749569457236,-460.0,0.00022465,4]
[365265148,1749569457247,-460.0,0.00022465,4]
[365265149,1749569457256,-460.0,0.00022465,4]
[365265150,1749569457266,-460.0,0.00022465,4]
[365265151,1749569457276,-320.0,0.00022465,4]
[365265152,1749569457285,-460.0,0.00022465,4]
[365265153,1749569457295,-460.0,0.00022465,4]
[365265154,1749569457305,-460.0,0.00022465,4]
[365265155,1749569457315,-1843.4,0.00022465,4]
[365265156,1749569457325,-897.05,0.00022465,4]
[365265157,1749569457335,-580.0,0.00022465,4]
[365265158,1749569457345,-1780.47,0.00022465,4]
[365265159,1749569457355,-460.0,0.00022465,4]
[365265160,1749569457365,-321.18295285,0.00022465,4]
[365265161,1749569457375,-2525.05,0.00022465,4]
[365265162,1749569457384,-460.0,0.00022465,4]
[365265163,1749569457394,-460.0,0.00022465,4]
[365265164,1749569457404,-460.0,0.00022465,4]
[365265165,1749569457414,-460.0,0.00022465,4]
[365265166,1749569457423,-532.84,0.00022465,2]
[365265167,1749569457434,-2218.96,0.00022465,4]
[365265168,1749569457444,-460.0,0.00022465,4]
[365265169,1749569457454,-460.0,0.00022465,4]
[365265170,1749569457464,-460.0,0.00022465,4]
[365265171,1749569457474,-700.33004905,0.00022486,7]
[365265172,1749569457483,-1561.0,0.00022492,4]
[365265173,1749569457493,-1561.0,0.0002252,4]
[365265174,1749569457504,-1561.0,0.00022547,4]
[365265175,1749569457514,-2745.75,0.00022573,2]
[365265176,1749569457524,-1561.0,0.00022575,4]
[365265177,1749569457533,-443.72833663,0.00022585,2]
[365265178,1749569457543,-1925.26,0.000226,7]
[365265179,1749569457554,-1561.0,0.00022602,4]
[365265180,1749569457563,-1000.0,0.00022619,2]
[365265181,1749569457573,-1561.0,0.00022629,4]
[365265182,1749569457583,-1561.0,0.00022657,4]
[365265183,1749569457592,-700.33004905,0.00022659,7]
[365265184,1749569457602,-1578.24389447,0.00022684,4]
[365265185,1749569457612,-163.506835,0.000227,7]
[365265186,1749569457622,-163.506835,0.000227,7]
[365265187,1749569457631,-1000.0,0.00022721,2]
[365265188,1749569457641,-1000.0,0.00022721,2]
[365265189,1749569457651,-22777.1988595,0.00022739,2]
[365265190,1749569457662,-11843.51442596,0.00022739,2]
[365265191,1749569457672,-151.0,0.00022739,7]
[365265192,1749569457682,-151.0,0.00022739,7]
[365265193,1749569457692,-151.348003,0.00022739,7]
[365265194,1749569457701,-460.0,0.00022739,4]
[365265195,1749569457712,-460.0,0.00022739,4]
[365265196,1749569457721,-460.0,0.00022739,4]
[365265197,1749569457731,-550.0,0.00022739,4]
[365265198,1749569457739,-460.0,0.00022739,4]
[365265199,1749569457751,-320.0,0.00022739,4]
[365265200,1749569457760,-520.0,0.00022739,4]
[365265201,1749569457769,-260.0,0.00022739,4]
[365265202,1749569457779,-260.0,0.00022739,4]
[365265203,1749569457788,-380.0,0.00022739,4]
[365265204,1749569457798,-460.0,0.00022739,4]
[365265205,1749569457808,-460.0,0.00022739,4]
[365265206,1749569457817,-460.0,0.00022739,4]
[365265207,1749569457827,-460.0,0.00022739,4]
[365265208,1749569457837,-460.0,0.00022739,4]
[365265209,1749569457846,-290.0,0.00022739,4]
[365265210,1749569457856,-460.0,0.00022739,4]
[365265211,1749569457865,-460.0,0.00022739,4]
[365265212,1749569457875,-249.20014089,0.00022739,4]
[365265213,1749569457884,-838.13,0.00022739,4]
[365265214,1749569457893,-460.0,0.00022739,4]
[365265215,1749569457903,-460.0,0.00022739,4]
[365265216,1749569457912,-460.0,0.00022739,4]
[365265217,1749569457921,-460.0,0.00022739,4]
[365265218,1749569457931,-460.0,0.00022739,4]
[365265219,1749569457940,-815.14,0.00022739,4]
[365265220,1749569457950,-460.0,0.00022739,4]
[365265221,1749569457959,-1379.67,0.00022739,4]
[365265222,1749569457969,-460.0,0.00022739,4]
[365265223,1749569457979,-460.0,0.00022739,4]
[365265224,1749569457989,-925.84,0.00022739,4]
[365265225,1749569458000,-1831.06,0.00022739,4]
[365265226,1749569458010,-460.0,0.00022739,4]
[365265227,1749569458019,-460.0,0.00022739,4]
[365265228,1749569458029,-460.0,0.00022739,4]
[365265229,1749569458038,-878.11,0.00022739,4]
[365265230,1749569458048,-460.0,0.00022739,4]
[365265231,1749569458058,-198.36172699,0.00022739,4]
[365265232,1749569458070,-460.0,0.00022739,4]
[365265233,1749569458081,-460.0,0.00022739,4]
[365265234,1749569458091,-460.0,0.00022739,4]
[365265235,1749569458100,-631.24,0.00022739,4]
[365265236,1749569458111,-2155.69,0.00022739,4]
[365265237,1749569458120,-460.0,0.00022739,4]
[365265238,1749569458130,-460.0,0.00022739,4]
[365265239,1749569458139,-320.0,0.00022739,4]
[365265240,1749569458150,-460.0,0.00022739,4]
[365265241,1749569458160,-508.21,0.00022739,4]
[365265242,1749569458170,-460.0,0.00022739,4]
[365265243,1749569458259,-460.0,0.00022739,4]
[365265244,1749569458268,-460.0,0.00022739,4]
[365265245,1749569458277,-460.0,0.00022739,4]
[365265246,1749569458285,-460.0,0.00022739,4]
[365265247,1749569458293,-460.0,0.00022739,4]
[365265248,1749569458302,-460.0,0.00022739,4]
[365265249,1749569458311,-471.95,0.00022739,4]
[365265250,1749569458320,-460.0,0.00022739,4]
[365265251,1749569458330,-1030.35,0.00022739,4]
[365265252,1749569458340,-460.0,0.00022739,4]
[365265253,1749569458349,-198.16197052,0.00022739,4]
[365265254,1749569458359,-460.0,0.00022739,4]
[365265255,1749569458368,-460.0,0.00022739,4]
[365265256,1749569458378,-460.0,0.00022739,4]
[365265257,1749569458387,-460.0,0.00022739,4]
[365265258,1749569458397,-460.0,0.00022739,4]
[365265259,1749569458406,-527.16,0.00022739,4]
[365265260,1749569458415,-460.0,0.00022739,4]
[365265261,1749569458425,-237.26308794,0.00022739,4]
[365265262,1749569458434,-773.12,0.00022739,4]
[365265263,1749569458444,-460.0,0.00022739,4]
[365265264,1749569458454,-460.0,0.00022739,4]
[365265265,1749569458464,-460.0,0.00022739,4]
[365265266,1749569458473,-714.45,0.00022739,4]
[365265267,1749569458483,-1226.03,0.00022739,4]
[365265268,1749569458493,-1855.94,0.00022739,4]
[365265269,1749569458504,-1160.6,0.00022739,4]
[365265270,1749569458514,-460.0,0.00022739,4]
[365265271,1749569458523,-460.0,0.00022739,4]
[365265272,1749569458533,-460.0,0.00022739,4]
[365265273,1749569458543,-460.0,0.00022739,4]
[365265274,1749569458553,-460.0,0.00022739,4]
[365265275,1749569458562,-460.0,0.00022739,4]
[365265276,1749569458572,-460.0,0.00022739,4]
[365265277,1749569458582,-460.0,0.00022739,4]
[365265278,1749569458591,-460.0,0.00022739,4]
[365265279,1749569458601,-1843.4,0.00022739,4]
[365265280,1749569458611,-897.05,0.00022739,4]
[365265281,1749569458621,-1780.47,0.00022739,4]
[365265282,1749569458631,-460.0,0.00022739,4]
[365265283,1749569458640,-2525.05,0.00022739,4]
[365265284,1749569458650,-460.0,0.00022739,4]
[365265285,1749569458660,-161.25911925,0.00022739,4]
[365265286,1749569458670,-460.0,0.00022739,4]
[365265287,1749569458680,-460.0,0.00022739,4]
[365265288,1749569458690,-532.84,0.00022739,2]
[365265289,1749569458699,-2218.96,0.00022739,4]
[365265290,1749569458709,-460.0,0.00022739,4]
[365265291,1749569458718,-460.0,0.00022739,4]
[365265292,1749569458728,-1500.0,0.00022755,2]
[365265293,1749569458738,-5000.0,0.00022755,2]
[365265294,1749569458749,-1500.0,0.00022755,2]
[365265295,1749569458759,-2938.92270128,0.00022755,2]
[365265296,1749569458768,-207.4,0.00022755,2]
[365265297,1749569458777,-182.915036,0.00022755,2]
[365265298,1749569458787,-196.75563594,0.00022764,2]
[365265299,1749569458796,-1306.10610434,0.00022768,2]
[365265300,1749569458805,-700.33004905,0.00022831,8]
[365265301,1749569458815,-587.0,0.00022834,2]
[365265302,1749569458824,-587.0,0.00022836,2]
[365265303,1749569458834,-1000.0,0.00022852,2]
[365265304,1749569458844,-1000.0,0.00022852,2]
[365265305,1749569458853,-1000.0,0.00022852,2]
[365265306,1749569458862,-6161.88963366,0.00022862,2]
[365265307,1749569458872,-443.72833663,0.00022885,2]
[365265308,1749569458881,-151.0,0.000229,7]
[365265309,1749569458890,-151.0,0.000229,7]
[365265310,1749569458899,-151.521573,0.000229,7]
[365265311,1749569458909,-151.0,0.000229,7]
[365265312,1749569458918,-213.1263252,0.000229,7]
[365265313,1749569458928,-243.169856,0.000229,7]
[365265314,1749569458938,-243.169856,0.000229,7]
[365265315,1749569458950,-151.0,0.000229,7]
[365265316,1749569458959,-424.061233,0.000229,7]
[365265317,1749569458969,-424.061233,0.000229,7]
[365265318,1749569458979,-151.0,0.000229,7]
[365265319,1749569458989,-151.0,0.000229,7]
[365265320,1749569459000,-151.0,0.000229,7]
[365265321,1749569459010,-155.216599,0.0002291,7]
[365265322,1749569459020,-25862.10134803,0.0002295,7]
[365265323,1749569459030,-23889.86461474,0.0002295,7]
[365265324,1749569459659,-500.0,0.00020609,2]
[365265325,1749569459670,-500.0,0.00020609,2]
[365265326,1749569459679,-463.97772934,0.00020609,2]
[365265327,1749569459688,-500.0,0.00020609,2]
[365265328,1749569459698,-460.0,0.00021095,4]
[365265329,1749569459707,-460.0,0.00021095,4]
[365265330,1749569459718,-410.0,0.00021095,4]
[365265331,1749569459727,-460.0,0.00021095,4]
[365265332,1749569459737,-364.16638328,0.00021095,4]
[365265333,1749569459746,-390.0,0.00021095,4]
[365265334,1749569459757,-460.0,0.00021095,4]
[365265335,1749569459767,-460.0,0.00021369,4]
[365265336,1749569459776,-460.0,0.00021369,4]
[365265337,1749569459787,-448.02097966,0.00021369,4]
[365265338,1749569459796,-460.0,0.00021369,4]
[365265339,1749569459806,-410.0,0.00021369,4]
[365265340,1749569459816,-151.0,0.00021643,2]
[365265341,1749569459826,-400.0,0.00021643,4]
[365265342,1749569459835,-460.0,0.00021643,4]
[365265343,1749569459844,-460.0,0.00021643,4]
[365265344,1749569459854,-460.0,0.00021917,4]
[365265345,1749569459864,-330.0,0.00021917,4]
[365265346,1749569459873,-842.5625,0.00022,7]
[365265347,1749569459883,-460.0,0.00022191,4]
[365265348,1749569459892,-460.0,0.00022465,4]
[365265349,1749569459902,-842.5625,0.000225,3]
[365265350,1749569459912,-460.0,0.00022739,4]
[365265351,1749569459922,-198.85,0.00022739,4]
[365265352,1749569459931,-1972.23673329,0.0002295,7]
[365265353,1749569459941,-800.0,0.00022962,2]
[365265354,1749569459950,-1000.0,0.00023,23]
[365265355,1749569459960,-229.6792923,0.00023,3]
[365265356,1749569459970,-16554.57218705,0.00023,20]
[365265357,1749569459979,-3026.35047221,0.00023,2]